fUSD/lending_fUSD_20250223
["ID","MTS","AMOUNT","RATE_DAILY","PERIOD"]
[354132495,1740269442036,-605.65143247,0.00019899,2]
[354132496,1740269442046,-605.65143247,0.00019899,2]
[354132497,1740269442055,-605.65143247,0.00019899,2]
[354132498,1740269442066,-605.65143247,0.00019899,2]
[354132499,1740269442076,-605.65143247,0.00019899,2]
[354132500,1740269442085,-605.65143247,0.00019899,2]
[354132501,1740269442095,-605.65143247,0.00019899,2]
[354132502,1740269442104,-605.65143247,0.00019899,2]
[354132503,1740269442114,-605.65143247,0.00019899,2]
[354132504,1740269442124,-605.65143247,0.00019899,2]
[354132505,1740269442133,-605.65143247,0.00019899,2]
[354132506,1740269442143,-605.65143247,0.00019899,2]
[354132507,1740269442152,-605.65143247,0.00019899,2]
[354132508,1740269442161,-605.65143247,0.00019899,2]
[354132509,1740269442171,-605.65,0.00019899,2]
[354132510,1740269442180,-628.90485873,0.00019899,2]
[354132511,1740269442189,-628.90485873,0.00019899,2]
[354132512,1740269442199,-628.90485873,0.00019899,2]
[354132513,1740269442208,-628.90485873,0.00019899,2]
[354132514,1740269442217,-628.90485873,0.00019899,2]
[354132515,1740269442226,-628.90485873,0.00019899,2]
[354132516,1740269442235,-628.90485873,0.00019899,2]
[354132517,1740269442244,-628.90485873,0.00019899,2]
[354132518,1740269442253,-628.90485873,0.00019899,2]
[354132519,1740269442262,-628.90485873,0.00019899,2]
[354132520,1740269442271,-628.90485873,0.00019899,2]
[354132521,1740269442279,-628.90485873,0.00019899,2]
[354132522,1740269442288,-628.90485873,0.00019899,2]
[354132523,1740269442297,-628.90485873,0.00019899,2]
[354132524,1740269442305,-628.90485873,0.00019899,2]
[354132525,1740269442314,-628.90485873,0.00019899,2]
[354132526,1740269442323,-628.90485873,0.00019899,2]
[354132527,1740269442332,-628.90485873,0.00019899,2]
[354132528,1740269442341,-628.90485873,0.00019899,2]
[354132529,1740269442351,-628.9,0.00019899,2]
[354132530,1740269442360,-796.99459401,0.00019899,2]
[354132531,1740269442369,-796.99459401,0.00019899,2]
[354132532,1740269442378,-796.99459401,0.00019899,2]
[354132533,1740269442387,-796.99459401,0.00019899,2]
[354132534,1740269442397,-796.99459401,0.00019899,2]
[354132535,1740269442407,-796.99459401,0.00019899,2]
[354132536,1740269442416,-796.99459401,0.00019899,2]
[354132537,1740269442426,-796.99459401,0.00019899,2]
[354132538,1740269442435,-796.99459401,0.00019899,2]
[354132539,1740269442445,-796.99459401,0.00019899,2]
[354132540,1740269442459,-796.99459401,0.00019899,2]
[354132541,1740269442469,-796.99459401,0.00019899,2]
[354132542,1740269442479,-796.99459401,0.00019899,2]
[354132543,1740269442491,-796.99459401,0.00019899,2]
[354132544,1740269442502,-796.99459401,0.00019899,2]
[354132545,1740269442512,-796.99459401,0.00019899,2]
[354132546,1740269442521,-796.99459401,0.00019899,2]
[354132547,1740269442533,-796.99459401,0.00019899,2]
[354132548,1740269442543,-796.99459401,0.00019899,2]
[354132549,1740269442552,-796.99,0.00019899,2]
[354132550,1740269442562,-1431463.24923502,0.000199,3]
[354132552,1740269442580,-942.29439724,0.000199,3]
[354132553,1740269442592,-14228.943164,0.000199,3]
[354132557,1740269442617,-969.825,0.000199,3]
[354132559,1740269442629,-832.06991559,0.000199,3]
[354132560,1740269442655,-285.48448275,0.000199,3]
[354132561,1740269442667,-79997.27546651,0.000199,3]
[354132563,1740269442679,-914.1281528,0.000199,3]
[354132564,1740269442691,-627.34078749,0.000199,3]
[354132565,1740269442703,-4555.90497708,0.000199,3]
[354132566,1740269442714,-399.74397803,0.000199,3]
[354132567,1740269442731,-151.0,0.0001987,2]
[354132568,1740269442741,-4772.80952065,0.000199,3]
[354132569,1740269442811,-151.0,0.00018388,2]
[354132570,1740269442821,-152.0,0.00019,2]
[354132571,1740269442831,-265.500814,0.0001987,2]
[354132572,1740269442839,-515.739186,0.000199,3]
[354132573,1740269442851,-2884.84977065,0.000199,3]
[354132574,1740269442862,-3798.462925,0.000199,3]
[354132575,1740269442900,-951.0,0.000199,3]
[354132576,1740269442911,-686.24633394,0.000199,3]
[354132577,1740269442922,-2036.95390841,0.000199,3]
[354132578,1740269442934,-344.54001449,0.000199,3]
[354132579,1740269442946,-2837.68245474,0.000199,3]
[354132580,1740269442973,-1055.92523434,0.000199,3]
[354132581,1740269442985,-43245.17280249,0.000199,3]
[354132582,1740269443023,-10736.83625068,0.000199,3]
[354132584,1740269443079,-261320.51732884,0.000199,3]
[354132585,1740269443091,-926.57855593,0.000199,3]
[354132593,1740269446132,-577.41000922,0.00019899,2]
[354132594,1740269446148,-271.58999078,0.00019899,2]
[354132595,1740269446158,-165042.27497399,0.000199,3]
[354132596,1740269446169,-1143.29859996,0.000199,3]
[354132598,1740269907694,900.0,0.0002,120]
[354132602,1740270162392,204.13,8.767e-05,2]
[354132603,1740270320236,2056.24001265,9e-05,2]
[354132652,1740270637901,-300.0,9.999e-05,2]
[354132653,1740270637912,-205.78838173,9.999e-05,2]
[354132654,1740270637923,-670.7257437,0.0001,2]
[354132655,1740270638120,-1405.70810028,0.0001,2]
[354132656,1740270638132,-300.0,0.0001,2]
[354132663,1740270640254,-798.52623198,0.0001,2]
[354132664,1740270640267,-900.0,0.0001,2]
[354132667,1740270643146,-1759451.78421966,0.0001,2]
[354132678,1740270646048,-744.576779,0.0001,2]
[354132679,1740270646158,-547.35055596,0.0001,2]
[354132680,1740270646171,-639.42499584,0.0001,2]
[354132681,1740271299405,151.47,8.767e-05,2]
[354132686,1740271545039,242.0,0.00012,7]
[354132687,1740271661030,-1844.397,9.8e-05,2]
[354132688,1740271661055,-8416.0221791,9.999e-05,2]
[354132689,1740271661079,-1155.04800563,9.999e-05,3]
[354132690,1740271661104,-1155.04800562,9.999e-05,3]
[354132691,1740271661128,-1155.04800563,9.999e-05,3]
[354132692,1740271661152,-150.0,9.999e-05,2]
[354132693,1740271661178,-1124.43680402,0.0001,2]
[354132697,1740271832226,-2676.54500004,9.999e-05,2]
[354132698,1740271832389,-686.38615094,9.999e-05,2]
[354132699,1740271832401,-412.76247396,9.999e-05,2]
[354132700,1740271832498,-1820.25014587,9.999e-05,2]
[354132701,1740271832508,-300.0,9.999e-05,2]
[354132702,1740271832518,-3113.45575579,0.0001,2]
[354132703,1740271832530,-328.01300429,0.0001,2]
[354132704,1740271832555,-898.97771118,0.0001,2]
[354132705,1740271832567,-1000.395,0.0001,2]
[354132823,1740271840425,-70461.69683247,0.0001,2]
[354132824,1740271840436,-280.11930789,0.0001,2]
[354132833,1740271843251,-7477.87100627,0.0001,2]
[354132839,1740271846163,-379.89623438,0.0001,2]
[354132840,1740271846174,-769.686283,0.0001,2]
[354132841,1740271846185,-627.65000005,0.0001,2]
[354132842,1740271846197,-44775.98659582,0.0001,2]
[354132843,1740271846208,-8849.56618415,0.0001,2]
[354132844,1740271846222,-4887.7,0.0001,2]
[354132845,1740271846250,-1936.62483291,0.0001,2]
[354132846,1740271846262,-2210.0,0.0001,2]
[354132847,1740271846272,-543.2619752,0.0001,2]
[354132848,1740271846283,-667.040778,0.0001,2]
[354132849,1740271846294,-70409.98124333,0.0001,2]
[354132850,1740271846312,-4519.43804507,0.0001,2]
[354132851,1740271846323,-879.41035815,0.0001,2]
[354132852,1740271846334,-8936.01055095,0.0001,2]
[354132853,1740271846345,-335.30570427,0.0001,2]
[354132854,1740271846356,-470.22347517,0.0001,2]
[354132855,1740271846368,-3949.3,0.0001,2]
[354132856,1740271846379,-3104.192539,0.0001,2]
[354132857,1740271846390,-1098.846,0.0001,2]
[354132858,1740271846426,-1168.34685848,0.0001,2]
[354132859,1740271846437,-680.31065153,0.0001,2]
[354132860,1740271892967,-150.0,9.999e-05,2]
[354132861,1740271892998,-15850.0,0.0001,2]
[354132862,1740272242333,291.33,8.219e-05,2]
[354132863,1740272333265,200.0,9.453e-05,2]
[354132866,1740272582120,156.93,8.767e-05,2]
[354132867,1740272895844,311.91,8.898e-05,2]
[354132868,1740272951032,200.0,8.898e-05,2]
[354132869,1740273002764,168.98,9.149e-05,2]
[354132870,1740273031529,-700.8,9.521e-05,2]
[354132871,1740273031539,-2505.24,9.521e-05,2]
[354132872,1740273031548,-300.0,9.537e-05,2]
[354132873,1740273031557,-1000.0,9.538e-05,2]
[354132874,1740273031567,-268.90730465,9.538e-05,2]
[354132875,1740273031576,-15327.05590617,9.538e-05,2]
[354132876,1740273031585,-700.8,9.551e-05,2]
[354132877,1740273031595,-700.8,9.581e-05,2]
[354132878,1740273031604,-700.8,9.612e-05,2]
[354132879,1740273031613,-700.8,9.642e-05,2]
[354132880,1740273031624,-700.8,9.672e-05,2]
[354132881,1740273031634,-512.46,9.701e-05,2]
[354132882,1740273031643,-700.8,9.702e-05,2]
[354132883,1740273031653,-700.8,9.732e-05,2]
[354132884,1740273031663,-700.8,9.762e-05,2]
[354132885,1740273031672,-700.8,9.792e-05,2]
[354132886,1740273031682,-1661.035,9.8e-05,2]
[354132887,1740273031692,-500.0,9.815e-05,2]
[354132888,1740273031702,-700.8,9.822e-05,2]
[354132889,1740273031711,-700.8,9.852e-05,2]
[354132890,1740273031721,-23433.34,9.865e-05,2]
[354132891,1740273031730,-859.84,9.872e-05,2]
[354132892,1740273031740,-623.06690324,9.872e-05,2]
[354132893,1740273031749,-700.8,9.882e-05,2]
[354132894,1740273031758,-181.1496,9.9e-05,2]
[354132895,1740273031768,-33769.5146,9.9e-05,2]
[354132896,1740273031777,-250.0,9.901e-05,2]
[354132897,1740273031786,-700.8,9.912e-05,2]
[354132898,1740273031795,-700.8,9.942e-05,2]
[354132899,1740273031805,-700.8,9.972e-05,2]
[354132900,1740273031814,-1116.51,9.999e-05,2]
[354132902,1740273031823,-500.0,0.0001,2]
[354132904,1740273031833,-150.0,0.0001,2]
[354132906,1740273031842,-10540.29605307,0.0001,2]
[354132908,1740273031854,-517.99953111,0.0001,2]
[354132910,1740273031866,-718352.82977451,0.0001,2]
[354132914,1740273031893,-8395.7450899,0.0001,2]
[354133197,1740273042497,-48236.3723763,0.0001,2]
[354133216,1740273042663,-1595.10300339,0.0001,2]
[354133223,1740273042720,-296.38837954,0.0001,2]
[354133500,1740273045381,-500.0,0.0001,2]
[354133502,1740273045392,-9771.2,0.0001,2]
[354133526,1740273045604,-357.61694522,0.0001,2]
[354133528,1740273045615,-154186.3041615,0.0001,2]
[354133997,1740273508792,332.95,8.219e-05,2]
[354133998,1740273527129,1500.0,9.392e-05,2]
[354134000,1740273689007,165.83,9.396e-05,2]
[354134001,1740273727312,210.03,8.767e-05,2]
[354134003,1740273770228,19467.81,9.352e-05,2]
[354134009,1740274115079,1333.62,9.223e-05,2]
[354134015,1740274231717,-452.14,9.511e-05,2]
[354134016,1740274231726,-1000.0,9.522e-05,2]
[354134017,1740274231735,-168.71,9.638e-05,2]
[354134018,1740274231744,-2000.0,9.712e-05,2]
[354134019,1740274231753,-159.26944241,9.712e-05,2]
[354134020,1740274231762,-1371.93147767,9.712e-05,2]
[354134021,1740274231786,-1667.99889075,9.712e-05,2]
[354134022,1740274231796,-841.52824717,9.758e-05,2]
[354134023,1740274231807,-85.06175283,9.758e-05,2]
[354134024,1740274231816,-206.1096,9.8e-05,2]
[354134025,1740274231825,-440.37,9.8e-05,2]
[354134026,1740274231834,-776.23,9.8e-05,2]
[354134027,1740274231843,-444.07,9.8e-05,2]
[354134028,1740274231852,-782.93,9.8e-05,2]
[354134029,1740274231862,-177.5,9.824e-05,2]
[354134030,1740274231871,-7813.34205059,9.834e-05,2]
[354134031,1740274231880,-1001.57314776,9.899e-05,2]
[354134032,1740274231889,-316.54697479,9.899e-05,2]
[354134033,1740274231898,-500.0,9.899e-05,2]
[354134034,1740274231907,-500.0,9.899e-05,2]
[354134035,1740274231915,-500.0,9.899e-05,2]
[354134036,1740274231924,-500.0,9.899e-05,2]
[354134037,1740274231934,-251.35305262,9.899e-05,2]
[354134038,1740274231942,-443.22888024,9.899e-05,2]
[354134039,1740274231951,-191.31764018,9.899e-05,2]
[354134040,1740274231960,-500.0,9.899e-05,2]
[354134041,1740274231969,-500.0,9.899e-05,2]
[354134042,1740274231978,-484.00486857,9.899e-05,2]
[354134043,1740274231987,-500.0,9.899e-05,2]
[354134044,1740274231996,-500.0,9.899e-05,2]
[354134045,1740274232005,-500.0,9.899e-05,2]
[354134046,1740274232014,-500.0,9.899e-05,2]
[354134047,1740274232023,-221736.4724,9.9e-05,2]
[354134048,1740274232032,-2612.5093,9.9e-05,2]
[354134049,1740274232041,-542.83088866,9.9e-05,2]
[354134050,1740274232050,-1069.99,9.999e-05,2]
[354134051,1740274232060,-40144.25627361,0.0001,2]
[354134052,1740274232071,-541.02982009,0.0001,2]
[354134053,1740274232082,-623.36980975,0.0001,2]
[354134054,1740274232093,-8778.16885204,0.0001,2]
[354134055,1740274232118,-315.0,0.0001,2]
[354134056,1740274232130,-787.72537109,0.0001,2]
[354134057,1740274232143,-367.35042861,0.0001,2]
[354134058,1740274232155,-7453.55953814,0.0001,2]
[354134059,1740274232166,-14126.18210641,0.0001,2]
[354134060,1740274232193,-22945.99779827,0.0001,2]
[354134061,1740274232204,-4742.82097401,0.0001,2]
[354134062,1740274232219,-1812.15498419,0.0001,2]
[354134063,1740274232230,-317.91128112,0.0001,2]
[354134064,1740274232241,-8646.38435609,0.0001,2]
[354134065,1740274232252,-7500.65049511,0.0001,2]
[354134066,1740274232264,-486.87103,0.0001,2]
[354134067,1740274232275,-858.15084791,0.0001,2]
[354134068,1740274232285,-2882.2,0.0001,2]
[354134069,1740274232304,-5378.856,0.0001,2]
[354134070,1740274232315,-38716.02574857,0.0001,2]
[354134071,1740274232325,-1537.47542561,0.0001,2]
[354134099,1740274237620,-21725.45950257,0.0001,2]
[354134100,1740274237803,-11286.72151883,0.0001,2]
[354134104,1740274240030,-576.7376874,0.0001,2]
[354134105,1740274240097,-100000.0,0.0001,2]
[354134106,1740274240112,-716.67031249,0.0001,2]
[354134107,1740274240124,-1953.80552984,0.0001,2]
[354134108,1740274240292,-1501.79232347,0.0001,2]
[354134337,1740274242720,-2734.9,0.0001,2]
[354134358,1740274242904,-633.07040001,0.0001,2]
[354134628,1740274245708,-776.23,9.8e-05,2]
[354134631,1740274245717,-128.41662748,9.8e-05,2]
[354134641,1740274245760,-311.95337252,9.8e-05,2]
[354134643,1740274245770,-19092.19478334,0.0001,2]
[354134647,1740274245781,-262.9,0.0001,2]
[354134660,1740274245841,-279.6363521,0.0001,2]
[354134663,1740274245852,-2733.38035353,0.0001,2]
[354134666,1740274245863,-472.15542413,0.0001,2]
[354134678,1740274245919,-362.2774596,0.0001,2]
[354134680,1740274245931,-691.7214083,0.0001,2]
[354134684,1740274245942,-424.659,0.0001,2]
[354134686,1740274245954,-350.0,0.0001,2]
[354134691,1740274245998,-616.0,0.0001,2]
[354134693,1740274246009,-1164.52397401,0.0001,2]
[354134696,1740274246020,-285.95000001,0.0001,2]
[354134978,1740274369299,341.14,0.0002,120]
[354134979,1740274560163,171.9,0.0002,120]
[354135031,1740274797704,313.67,9.274e-05,2]
[354135033,1740274841975,151.9,8.767e-05,2]
[354135034,1740274955362,687.87,9.27e-05,2]
[354135035,1740274960224,343.76,8.219e-05,2]
[354135038,1740275027346,1000.0,9.246e-05,2]
[354135039,1740275086227,931.0202867,0.0002,120]
[354135040,1740275271519,168.98,9.454e-05,2]
[354135044,1740275431883,-599.29702508,9.653e-05,2]
[354135045,1740275431894,-1300.0,9.653e-05,2]
[354135046,1740275431948,-100.70297492,9.653e-05,2]
[354135047,1740275431958,-150.0,9.726e-05,2]
[354135048,1740275431967,-36.85626101,9.799e-05,2]
[354135049,1740275431979,-143.02373899,9.799e-05,2]
[354135050,1740275431988,-284.70113848,9.8e-05,2]
[354135051,1740275431997,-223.3559,9.8e-05,2]
[354135052,1740275432010,-150.0,9.863e-05,2]
[354135053,1740275432019,-150.0,9.899e-05,2]
[354135054,1740275432027,-300.0,9.899e-05,2]
[354135055,1740275432036,-675.3744,9.9e-05,2]
[354135056,1740275432045,-37681.59699526,9.9e-05,2]
[354135057,1740275432067,-1648.19,9.9e-05,2]
[354135058,1740275432085,-4992.60541393,9.9e-05,2]
[354135059,1740275432097,-8995.14256453,9.9e-05,2]
[354135060,1740275432210,-5874.10702628,9.9e-05,2]
[354135061,1740275432219,-7076.6101,9.9e-05,2]
[354135062,1740275432228,-544.16701775,9.9e-05,2]
[354135063,1740275432237,-2235.98658548,9.93e-05,2]
[354135064,1740275432246,-776.23,9.93e-05,2]
[354135065,1740275432255,-440.37,9.93e-05,2]
[354135066,1740275432264,-440.37,9.93e-05,2]
[354135067,1740275432274,-776.23,9.93e-05,2]
[354135068,1740275432283,-440.37,9.93e-05,2]
[354135069,1740275432292,-31.17927046,9.93e-05,2]
[354135070,1740275432303,-1517.65072954,9.93e-05,2]
[354135071,1740275432312,-440.37,9.93e-05,2]
[354135072,1740275432322,-440.37,9.93e-05,2]
[354135073,1740275432331,-437.24,9.93e-05,2]
[354135074,1740275432340,-1031.2625,9.973e-05,2]
[354135075,1740275432349,-164.43196341,9.98e-05,2]
[354135076,1740275432358,-1334.9,9.992e-05,2]
[354135077,1740275432367,-3171.3287926,9.992e-05,2]
[354135078,1740275432377,-4178.5983467,9.993e-05,2]
[354135079,1740275432386,-1026.08,9.999e-05,2]
[354135080,1740275432396,-352.57568262,9.999e-05,2]
[354135081,1740275432405,-500.0,9.999e-05,2]
[354135082,1740275432415,-500.0,9.999e-05,2]
[354135083,1740275432424,-500.0,9.999e-05,2]
[354135084,1740275432433,-500.0,9.999e-05,2]
[354135085,1740275432443,-500.0,9.999e-05,2]
[354135087,1740275432452,-288.95770624,9.999e-05,2]
[354135089,1740275432461,-500.0,9.999e-05,2]
[354135091,1740275432470,-500.0,9.999e-05,2]
[354135092,1740275432480,-500.0,9.999e-05,2]
[354135093,1740275432490,-500.0,9.999e-05,2]
[354135094,1740275432500,-500.0,9.999e-05,2]
[354135095,1740275432509,-500.0,9.999e-05,2]
[354135096,1740275432518,-500.0,9.999e-05,2]
[354135097,1740275432528,-500.0,9.999e-05,2]
[354135098,1740275432537,-500.0,9.999e-05,2]
[354135099,1740275432546,-500.0,9.999e-05,2]
[354135100,1740275432556,-832.0,0.0001,2]
[354135101,1740275432565,-722905.71765308,0.0001,2]
[354135107,1740275437833,-751.0,0.0001,2]
[354135108,1740275437842,-715.86838807,0.0001,2]
[354135109,1740275437897,-1243.68976023,0.0001,2]
[354135110,1740275437963,-514.28799937,0.0001,2]
[354135151,1740275440100,-8160.01366355,0.0001,2]
[354135152,1740275440223,-27731.46638528,0.0001,2]
[354135436,1740275443095,-679.0,0.0001,2]
[354135438,1740275443104,-67294.45022006,0.0001,2]
[354135441,1740275443118,-306.0,0.0001,2]
[354135453,1740275443222,-3995.29992189,0.0001,2]
[354135461,1740275443290,-28456.36818578,0.0001,2]
[354135540,1740275445929,-264.77982193,9.93e-05,2]
[354135542,1740275445938,-94.81301054,0.0001,2]
[354135544,1740275445950,-264.37005527,0.0001,2]
[354135546,1740275445961,-2430.68567802,0.0001,2]
[354135555,1740275446036,-94188.76077205,0.0001,2]
[354135557,1740275446047,-82393.77510595,0.0001,2]
[354135562,1740275446262,-25240.36081454,0.0001,2]
[354135563,1740275446273,-383.11814254,0.0001,2]
[354135564,1740275446284,-6477.93543721,0.0001,2]
[354135565,1740275446294,-2746.73849264,0.0001,2]
[354135566,1740275446319,-9945.31988422,0.0001,2]
[354135567,1740275446330,-378.8694,0.0001,2]
[354135568,1740275446341,-53945.0,0.0001,2]
[354135570,1740275446352,-779.571,0.0001,2]
[354135571,1740275446363,-734.45888681,0.0001,2]
[354135572,1740275446374,-1130.07324647,0.0001,2]
[354135586,1740275727350,41846.32229942,0.00013,14]
[354135587,1740275887254,498.97,9.328e-05,2]
[354135588,1740276113431,355.66,8.219e-05,2]
[354135589,1740276154735,175.2,9.317e-05,2]
[354135590,1740276154926,175.2,9.346e-05,2]
[354135591,1740276155123,175.2,9.375e-05,2]
[354135592,1740276155365,175.2,9.405e-05,2]
[354135593,1740276155577,175.2,9.434e-05,2]
[354135594,1740276155779,175.2,9.464e-05,2]
[354135595,1740276155987,175.2,9.493e-05,2]
[354135596,1740276188807,1000.0,8.957e-05,2]
[354135598,1740276397741,158.99,8.767e-05,2]
[354135601,1740276590267,2000.0,8.99e-05,2]
[354135620,1740276632107,-175.2,9.523e-05,2]
[354135621,1740276632117,-141.32362598,9.552e-05,2]
[354135622,1740276632128,-33.87637402,9.552e-05,2]
[354135623,1740276632137,-165.83,9.574e-05,2]
[354135624,1740276632147,-130.84943613,9.581e-05,2]
[354135625,1740276632158,-44.35056387,9.581e-05,2]
[354135626,1740276632167,-179.88,9.596e-05,2]
[354135627,1740276632176,-175.2,9.611e-05,2]
[354135628,1740276632185,-111.61383777,9.64e-05,2]
[354135629,1740276632196,-63.58616223,9.64e-05,2]
[354135630,1740276632205,-175.2,9.67e-05,2]
[354135631,1740276632214,-176.53981521,9.699e-05,2]
[354135632,1740276632223,-175.2,9.699e-05,2]
[354135633,1740276632232,-175.2,9.729e-05,2]
[354135634,1740276632241,-175.2,9.758e-05,2]
[354135635,1740276632250,-175.2,9.787e-05,2]
[354135636,1740276632259,-175.2,9.817e-05,2]
[354135637,1740276632268,-150.0,9.84e-05,2]
[354135638,1740276632277,-160.13434534,9.846e-05,2]
[354135639,1740276632288,-15.06565466,9.846e-05,2]
[354135640,1740276632297,-175.2,9.876e-05,2]
[354135641,1740276632306,-300.0,9.991e-05,2]
[354135642,1740276632315,-1254.6308266,9.992e-05,2]
[354135643,1740276632324,-255.10351874,9.992e-05,2]
[354135644,1740276632335,-260.0,9.992e-05,2]
[354135645,1740276632346,-539.31771681,9.992e-05,2]
[354135646,1740276632357,-2601.12350005,9.992e-05,2]
[354135647,1740276632366,-1365.6904777,9.993e-05,2]
[354135648,1740276632375,-2924.45321992,9.993e-05,2]
[354135649,1740276632386,-573.51186156,9.993e-05,2]
[354135650,1740276632397,-481.16768842,9.993e-05,2]
[354135651,1740276632407,-983.33,9.999e-05,2]
[354135652,1740276632417,-150.0,9.999e-05,2]
[354135653,1740276632428,-500.0,9.999e-05,2]
[354135654,1740276632437,-500.0,9.999e-05,2]
[354135655,1740276632447,-491.02547407,9.999e-05,2]
[354135656,1740276632456,-501.55104573,9.999e-05,2]
[354135657,1740276632465,-607.0,0.0001,2]
[354135658,1740276632474,-92165.51352795,0.0001,2]
[354135659,1740276632489,-689.56588077,0.0001,2]
[354135660,1740276632500,-10749.52855872,0.0001,2]
[354135661,1740276632512,-973.725,0.0001,2]
[354135662,1740276632522,-542.92,0.0001,2]
[354135663,1740276632533,-479.93,0.0001,2]
[354135664,1740276632547,-1129.79283877,0.0001,2]
[354135665,1740276632558,-5338.47017252,0.0001,2]
[354135676,1740276638063,-903.190002,0.0001,2]
[354135677,1740276638075,-2163.59493122,0.0001,2]
[354135678,1740276638170,-3632.4886556,0.0001,2]
[354135679,1740276638181,-461940.519297,0.0001,2]
[354135680,1740276638192,-215987.88162589,0.0001,2]
[354135683,1740276640205,-546.0,0.0001,2]
[354135684,1740276640214,-727.216,0.0001,2]
[354135685,1740276640310,-1260.3,0.0001,2]
[354135686,1740276640415,-357.38789991,0.0001,2]
[354135687,1740276640627,-400.0,0.0001,2]
[354135688,1740276640638,-4046.39382241,0.0001,2]
[354135689,1740276640680,-1032.75,0.0001,2]
[354135690,1740276640733,-8471.56575124,0.0001,2]
[354135946,1740276643237,-11667.2041683,0.0001,2]
[354135960,1740276643394,-54725.74477045,0.0001,2]
[354136045,1740276646109,-2519.0000009,0.0001,2]
[354136046,1740276646162,-3999.42611812,0.0001,2]
[354136047,1740276646217,-363.66593995,0.0001,2]
[354136048,1740276646324,-2241.09973302,0.0001,2]
[354136049,1740276646335,-5335.0382,0.0001,2]
[354136050,1740276646435,-104420.35385569,0.0001,2]
[354136051,1740276646447,-51560.77942301,0.0001,2]
[354136054,1740277250997,365.5,8.219e-05,2]
[354136055,1740277334484,1000.0,9.037e-05,2]
[354136056,1740277356960,168.98,9.313e-05,2]
[354136057,1740277365963,545.19,9.51e-05,2]
[354136060,1740277522323,670.22,9.017e-05,2]
[354136062,1740277588555,200.0,9.015e-05,2]
[354136063,1740277611736,306.0,8.767e-05,2]
[354136065,1740277670596,2100.0,0.00020218,120]
[354136072,1740277806944,3927.06,9.098e-05,2]
[354136083,1740277832445,-166.61,9.612e-05,2]
[354136084,1740277832455,-155.73,9.612e-05,2]
[354136085,1740277832465,-155.73,9.646e-05,2]
[354136086,1740277832474,-155.73,9.68e-05,2]
[354136087,1740277832484,-155.73,9.714e-05,2]
[354136088,1740277832493,-155.73,9.748e-05,2]
[354136089,1740277832502,-155.73,9.782e-05,2]
[354136090,1740277832512,-337.1697,9.8e-05,2]
[354136091,1740277832522,-155.73,9.816e-05,2]
[354136092,1740277832531,-155.73,9.85e-05,2]
[354136093,1740277832541,-176.53981521,9.85e-05,2]
[354136094,1740277832550,-155.73,9.884e-05,2]
[354136095,1740277832560,-150.0,9.896e-05,2]
[354136096,1740277832569,-261.5397,9.899e-05,2]
[354136097,1740277832579,-300.0,9.899e-05,2]
[354136098,1740277832588,-150.0,9.899e-05,2]
[354136099,1740277832598,-1000.0,9.9e-05,2]
[354136100,1740277832607,-2513.4839,9.9e-05,2]
[354136101,1740277832617,-14479.6902,9.9e-05,2]
[354136102,1740277832627,-692.09367485,9.9e-05,2]
[354136103,1740277832636,-544.16701773,9.9e-05,2]
[354136104,1740277832646,-5036.0345,9.9e-05,2]
[354136105,1740277832656,-2500.0,9.9e-05,2]
[354136106,1740277832665,-2545.5117,9.9e-05,2]
[354136107,1740277832675,-155.73,9.918e-05,2]
[354136108,1740277832684,-155.73,9.952e-05,2]
[354136109,1740277832693,-250.0,9.961e-05,2]
[354136110,1740277832703,-155.73,9.985e-05,2]
[354136111,1740277832713,-1680.3048954,9.992e-05,2]
[354136112,1740277832722,-576.7026455,9.992e-05,2]
[354136113,1740277832732,-2285.0103654,9.993e-05,2]
[354136114,1740277832741,-784.2454821,9.993e-05,2]
[354136115,1740277832750,-942.36,9.999e-05,2]
[354136116,1740277832759,-18400.91464374,0.0001,2]
[354136119,1740277832832,-1564.16322837,0.0001,2]
[354136122,1740277838235,-1357.91758133,0.0001,2]